bitfinex-derivatives/quotes_SOLF0:USTF0_20240918
["timestamp","ask_amount","ask_price","bid_price","bid_amount"]
[1726693385426,2.884,130.81,130.68,7.18436618]
[1726693385622,5.30698016,130.82,130.69,18.67535984]
[1726693385924,3.78128016,130.82,130.7,18.67535984]
[1726693386126,4.2826,130.86,130.71,7.18436618]
[1726693386423,3.8218,130.81,130.7,5.00583586]
[1726693386629,3.80635487,130.8,130.71,7.18085004]
[1726693386826,3.80635487,130.8,130.72,11.56225004]
[1726693387033,3.80635487,130.8,130.72,4.3814]
[1726693387920,3.80635487,130.8,130.78,3.8225]
[1726693390023,3.8216,130.82,130.78,3.8225]
[1726693390424,7.68749244,130.82,130.78,3.8225]
[1726693390626,3.8216,130.82,130.78,3.8225]
[1726693391321,7.56358401,130.82,130.78,3.8225]
[1726693391935,3.8219,130.81,130.77,3.8228]
[1726693392233,3.8219,130.81,130.72,4.3814]
[1726693393928,3.8219,130.81,130.77,3.8227]
[1726693395831,3.822,130.8,130.77,3.8227]
[1726693397135,3.8218,130.81,130.78,3.8226]
[1726693397836,7.58548143,130.81,130.78,3.8226]
[1726693398734,3.76368143,130.81,130.78,3.8226]
[1726693399040,3.8215,130.82,130.78,3.8226]
[1726693399440,7.63337491,130.82,130.78,3.8226]
[1726693399742,7.63337491,130.82,130.79,3.8223]
[1726693400939,3.81187491,130.82,130.79,3.8223]
[1726693401140,3.8213,130.83,130.79,3.8223]
[1726693401735,7.62696377,130.83,130.79,3.8223]
[1726693409046,15.75185854,130.9,130.74,3.91200355]
[1726693409247,15.75185854,130.9,130.75,18.67057154]
[1726693409448,3.8187,130.92,130.86,3.8201]
[1726693409744,1.16289529,130.91,130.86,3.8201]
[1726693410053,3.8187,130.92,130.86,3.8201]
[1726693410348,3.8188,130.91,130.86,3.8201]
[1726693410744,2.9748,130.93,130.87,3.8199]
[1726693410945,1.1627694,130.92,130.87,3.8199]
[1726693411840,4.9812694,130.92,130.87,3.8199]
[1726693412040,3.8185,130.92,130.87,3.8199]
[1726693412253,2.9748,130.93,130.86,3.8201]
[1726693412549,1.16280261,130.92,130.86,3.8201]
[1726693412955,1.427,130.91,130.86,3.8201]
[1726693413858,5.246,130.91,130.86,3.8201]
[1726693414149,5.246,130.91,130.78,7.17117733]
[1726693414150,1.427,130.91,130.87,3.8199]
[1726693415754,1.427,130.91,130.88,3.8197]
[1726693416057,1.427,130.91,130.77,22.9612455]
[1726693416256,1.427,130.91,130.88,3.8195]
[1726693416952,1.427,130.91,130.77,11.48404609]
[1726693416953,1.427,130.91,130.87,3.8199]
[1726693419256,1.16276782,130.9,130.87,3.8199]
[1726693419756,1.16276782,130.9,130.77,157.25]
[1726693420153,1.16276782,130.9,130.86,3.82]
[1726693420660,4.98206782,130.9,130.86,3.82]
[1726693420849,3.8193,130.9,130.86,3.82]
[1726693421455,3.8195,130.89,130.85,3.8204]
[1726693423651,3.8191,130.9,130.86,3.8202]
[1726693423852,1.427,130.91,130.77,4.31]
[1726693424058,1.16273034,130.9,130.77,4.31]
[1726693424563,4.98193034,130.9,130.86,3.82]
[1726693424759,3.8192,130.9,130.86,3.82]
[1726693425857,1.427,130.91,130.77,4.31]
[1726693426159,1.4867,130.93,130.77,4.31]
[1726693426348,1.16260229,130.92,130.77,11.48307273]
[1726693426552,1.16260229,130.92,130.77,4.31]
[1726693426750,1.16260229,130.92,130.86,3.82]
[1726693426751,3.8193,130.9,130.86,3.82]
[1726693427366,3.8193,130.9,130.87,3.8199]
[1726693428861,3.8189,130.91,130.87,3.8199]
[1726693431757,3.8186,130.92,130.87,3.8199]
[1726693432168,3.8186,130.92,130.88,3.8195]
[1726693432370,8.1759,130.93,130.79,7.6445]
[1726693432670,1.16256503,130.92,130.88,3.8195]
[1726693432866,3.8186,130.92,130.88,3.8195]
[1726693433664,8.1758,130.93,130.89,3.8194]
[1726693433870,4.3575,130.93,130.89,3.8194]
[1726693434471,8.1758,130.93,130.89,3.8194]
[1726693440280,3.8185,130.92,130.88,3.8196]
[1726693440774,8.1758,130.93,130.89,3.8194]
[1726693445079,2.8858,130.93,130.82,3.75851104]
[1726693445278,2.8858,130.93,130.83,4.339]
[1726693445671,2.8858,130.93,130.9,3.819]
[1726693445873,7.68687438,130.94,130.83,4.339]
[1726693445874,3.86887438,130.94,130.83,4.339]
[1726693446077,1.404,131.0,130.91,3.8186]
[1726693446078,2.9542,130.99,130.91,3.8186]
[1726693446381,1.16225744,130.98,130.84,139.42038505]
[1726693446583,3.818,130.94,130.91,3.8187]
[1726693446880,7.63842672,130.94,130.91,3.8187]
[1726693447176,7.6147306,130.94,130.91,3.8187]
[1726693448075,3.7967306,130.94,130.91,3.8187]
[1726693448277,1.5019,130.97,130.89,3.8191]
[1726693448478,1.16232707,130.96,130.84,139.42038505]
[1726693448674,3.8181,130.94,130.84,139.42038505]
[1726693448879,1.16235352,130.93,130.9,3.8189]
[1726693449184,7.55903005,130.94,130.9,3.8189]
[1726693449578,7.55903005,130.94,130.91,3.8187]
[1726693449988,3.74093005,130.94,130.91,3.8187]
[1726693450284,1.16230145,130.93,130.91,3.8187]
[1726693450486,3.87839536,130.93,130.91,3.8187]
[1726693450777,3.8177,130.95,130.91,3.8187]
[1726693450985,1.16230129,130.94,130.91,3.8187]
[1726693452480,7.54401641,130.95,130.91,3.8187]
[1726693452684,1.16226655,130.94,130.91,3.8187]
[1726693453386,1.16226655,130.94,130.84,139.42038505]
[1726693453686,3.0097,130.93,130.84,139.42038505]
[1726693453887,1.16226655,130.92,130.84,139.42038505]
[1726693454085,4.98096655,130.92,130.88,3.8196]
[1726693454287,1.16226655,130.91,130.88,3.8196]
[1726693455888,3.8188,130.91,130.87,3.8198]
[1726693457087,3.8186,130.92,130.88,3.8196]
[1726693465789,3.0097,130.93,130.84,139.42038505]
[1726693465979,2.61656851,130.92,130.84,139.42038505]
[1726693466187,1.16266851,130.91,130.84,139.42038505]
[1726693468394,1.16266851,130.91,130.84,143.24108505]
[1726693468894,1.4539,130.92,130.84,143.24108505]
[1726693469087,1.16292151,130.91,130.84,143.24108505]
[1726693469588,3.8195,130.89,130.84,143.24108505]
[1726693470791,3.8195,130.89,130.85,3.8205]
[1726693472592,3.8197,130.88,130.84,143.24108505]
[1726693472794,7.57210376,130.88,130.84,143.24108505]
[1726693474593,7.57210376,130.88,130.79,4.5011]
[1726693474594,3.82,130.87,130.83,3.821]
[1726693474892,3.75240376,130.88,130.79,4.5011]
[1726693475086,1.4539,130.92,130.79,4.5011]
[1726693475087,1.16315027,130.87,130.79,4.5011]
[1726693475285,3.74829409,130.88,130.79,4.5011]
[1726693475488,1.16315486,130.87,130.79,3.0577]
[1726693475795,3.8204,130.86,130.81,3.8214]
[1726693475995,2.9188,130.87,130.79,3.0577]
[1726693476695,2.9188,130.87,130.81,3.8215]
[1726693476894,2.9188,130.87,130.79,3.0577]
[1726693477798,6.7389,130.87,130.83,3.8209]
[1726693478193,7.67477307,130.88,130.79,3.0577]
[1726693478494,2.8425,130.92,130.79,3.0577]
[1726693478698,1.16293536,130.91,130.79,3.0577]
[1726693479000,16.90758284,130.91,130.79,3.0577]
[1726693479195,1.16293536,130.9,130.84,3.8206]
[1726693479499,1.16293536,130.89,130.84,3.8206]
[1726693479692,1.16293536,130.88,130.84,3.8206]
[1726693479886,3.90506249,130.88,130.84,3.8206]
[1726693480086,2.8425,130.92,130.84,3.8206]
[1726693480391,1.16298271,130.91,130.79,3.0577]
[1726693481099,2.8425,130.92,130.79,3.0577]
[1726693481100,3.8202,130.87,130.82,3.8212]
[1726693481400,7.57422952,130.87,130.79,3.0577]
[1726693482094,3.8203,130.86,130.79,3.0577]
[1726693482292,3.75402952,130.87,130.79,3.0577]
[1726693482500,1.16318322,130.86,130.81,3.8216]
[1726693482697,3.88229756,130.87,130.81,3.8216]
[1726693483000,1.16320789,130.86,130.8,3.8219]
[1726693483293,3.8209,130.84,130.8,3.8219]
[1726693483489,7.63284669,130.84,130.8,3.8219]
[1726693486399,3.81194669,130.84,130.79,1.534]
[1726693486593,4.3224,130.87,130.79,1.534]
[1726693486794,1.16333672,130.86,130.79,1.534]
[1726693486995,4.98504415,130.86,130.79,1.534]
[1726693487195,3.8205,130.86,130.81,3.8215]
[1726693487699,7.56993379,130.86,130.81,3.8215]
[1726693488600,7.56993379,130.86,130.82,3.8214]
[1726693488806,3.74943379,130.86,130.82,3.8214]
[1726693488994,8.1425,130.87,130.82,3.8214]
[1726693489190,1.16325523,130.86,130.82,3.8214]
[1726693489406,4.9615444,130.86,130.82,3.8214]
[1726693489697,8.1425,130.87,130.82,3.8214]
[1726693489901,4.98354708,130.86,130.82,3.8214]
[1726693490203,3.8203,130.86,130.82,3.8214]
[1726693493102,3.8203,130.86,130.81,3.8216]
[1726693497003,3.8203,130.86,130.82,3.8214]
[1726693497405,3.8206,130.85,130.79,1.534]
[1726693497899,8.18531972,130.87,130.75,1.3892]
[1726693498093,1.16348561,130.86,130.75,1.3892]
[1726693498289,1.16367415,130.86,130.78,3.8225]
[1726693498494,1.16367415,130.86,130.75,1.3892]
[1726693499493,3.8209,130.84,130.78,3.8224]
[1726693499697,8.18531972,130.87,130.75,1.3892]
[1726693499895,1.16352332,130.86,130.76,1.4148]
[1726693500405,1.16352332,130.86,130.77,1.5258]
[1726693501098,1.16348244,130.85,130.77,1.5258]
[1726693501406,8.18531972,130.87,130.77,1.5258]
[1726693501597,3.8206,130.85,130.77,1.5258]
[1726693501797,8.18531972,130.87,130.77,1.5258]
[1726693502102,4.9837342,130.86,130.8,3.8218]
[1726693502304,8.18531972,130.87,130.77,1.5258]
[1726693502601,1.16332568,130.86,130.77,1.5258]
[1726693502797,1.16332568,130.86,130.81,3.8215]
[1726693503012,1.16332568,130.86,130.77,1.5258]
[1726693503191,5.28031972,130.87,130.77,1.5258]
[1726693503497,4.98358398,130.86,130.77,1.5258]
[1726693503701,3.8203,130.86,130.77,1.5258]
[1726693504296,3.8203,130.86,130.81,3.8215]
[1726693504699,3.8203,130.86,130.77,1.5258]
[1726693505098,9.10031972,130.87,130.77,1.5258]
[1726693505602,9.10031972,130.87,130.8,3.822]
[1726693505799,3.86291972,130.87,130.77,1.5258]
[1726693506002,3.8197,130.88,130.77,1.5258]
[1726693506207,3.8197,130.88,130.84,3.8208]
[1726693506395,3.82,130.87,130.77,1.5258]
[1726693506592,3.76903571,130.86,130.77,1.5258]
[1726693506793,3.76903571,130.86,130.83,3.8209]
[1726693507605,3.76903571,130.86,130.84,3.8207]
[1726693507805,3.8197,130.88,130.84,3.8207]
[1726693508308,7.72263598,130.88,130.84,3.8207]
[1726693509913,7.72263598,130.88,130.77,1.5258]
[1726693509914,7.72263598,130.88,130.83,3.821]
[1726693510101,7.72263598,130.88,130.77,1.5258]
[1726693510102,3.82,130.87,130.77,1.5258]
[1726693510615,3.88573233,130.87,130.77,1.5258]
[1726693510806,1.4539,130.92,130.77,1.5258]
[1726693510807,1.16321391,130.86,130.77,1.5258]
[1726693510997,2.956,130.86,130.77,1.5258]
[1726693512302,3.821,130.84,130.8,3.8218]
[1726693515902,3.821,130.84,130.77,1.5258]
[1726693515903,3.8212,130.83,130.79,3.8221]
[1726693516610,4.3665,130.86,130.78,3.8225]
[1726693516611,3.8215,130.82,130.78,3.8225]
[1726693526119,3.8217,130.81,130.78,3.8225]
[1726693527522,3.822,130.8,130.77,3.8228]
[1726693528320,3.83099862,130.79,130.77,3.8228]
[1726693528522,3.822,130.8,130.77,3.8228]
[1726693529025,7.60863445,130.8,130.77,3.8228]
[1726693530919,3.78663445,130.8,130.78,3.8225]
[1726693531217,4.3665,130.86,130.72,11.55554724]
[1726693531517,4.3665,130.86,130.83,3.8209]
[1726693531722,2.956,130.86,130.83,3.8209]
[1726693532020,2.956,130.86,130.73,16.4581036]
[1726693532321,2.956,130.86,130.75,1.4592]
[1726693532322,1.16339049,130.85,130.75,1.4592]
[1726693532717,1.16339049,130.85,130.8,3.8219]
[1726693533916,4.98399049,130.85,130.8,3.8219]
[1726693534222,3.8206,130.85,130.8,3.8219]
[1726693535016,6.7764,130.86,130.81,3.8216]
[1726693535329,1.425,130.86,130.76,2.8764]
[1726693535528,1.425,130.86,130.83,3.8209]
[1726693536425,1.425,130.86,130.76,2.8764]
[1726693536924,4.98420071,130.85,130.8,3.8218]
[1726693537127,3.83670998,130.87,130.8,3.8218]
[1726693537436,1.16341295,130.86,130.8,3.8218]
[1726693537623,1.16341295,130.85,130.8,3.8218]
[1726693538021,15.7490522,130.92,130.8,3.8218]
[1726693538222,3.8207,130.85,130.8,3.8218]
[1726693538422,7.59174129,130.85,130.81,3.8217]
[1726693540333,3.77104129,130.85,130.74,11.46172553]
[1726693540529,15.7490522,130.92,130.75,7.16244114]
[1726693540735,1.16325814,130.91,130.74,11.45990583]
[1726693540924,3.8201,130.87,130.82,3.8211]
[1726693541126,7.67537113,130.87,130.82,3.8211]
[1726693541426,3.8201,130.87,130.82,3.8211]
[1726693541838,7.62144858,130.87,130.82,3.8211]
[1726693544030,7.62144858,130.87,130.83,3.8211]
[1726693546331,1.16326532,130.86,130.83,3.8211]
[1726693548636,4.98366532,130.86,130.76,7.16421901]
[1726693548835,3.8204,130.86,130.75,11.46285053]
[1726693549030,1.16330402,130.85,130.73,4.99392428]
[1726693549236,15.74695705,130.94,130.81,3.8217]
[1726693549437,1.16334175,130.93,130.81,3.8217]
[1726693549832,3.8204,130.86,130.81,3.8217]
[1726693550034,7.58598898,130.86,130.82,3.8214]
[1726693550941,3.76558898,130.86,130.82,3.8214]
[1726693551128,3.82,130.87,130.82,3.8214]
[1726693551328,1.16316643,130.86,130.82,3.8214]
[1726693551532,5.05952627,130.86,130.82,3.8214]
[1726693551739,3.82,130.87,130.73,4.99392428]
[1726693551937,1.16314954,130.86,130.73,4.99392428]
[1726693552138,4.98344954,130.86,130.73,4.99392428]
[1726693552340,3.8203,130.86,130.82,3.8212]
[1726693552538,15.74695705,130.94,130.76,7.6461]
[1726693552840,1.16295488,130.93,130.76,7.6461]
[1726693553033,1.16295488,130.93,130.84,3.8207]
[1726693553339,1.16295488,130.93,130.76,7.6461]
[1726693553542,1.16305076,130.92,130.83,3.8211]
[1726693553740,1.16305076,130.91,130.83,3.8211]
[1726693554040,1.16305076,130.9,130.83,3.8211]
[1726693554241,1.16305076,130.89,130.83,3.8211]
[1726693554439,1.16305076,130.88,130.83,3.8211]
[1726693554634,3.87830266,130.88,130.83,3.8211]
[1726693554939,15.74695705,130.94,130.83,3.8211]
[1726693555239,3.8198,130.88,130.76,7.6461]
[1726693555434,7.68816025,130.88,130.76,7.6461]
[1726693555638,3.8198,130.88,130.76,7.6461]
[1726693555943,3.8198,130.88,130.84,3.8208]
[1726693556137,7.7005682,130.88,130.84,3.8208]
[1726693556337,3.8198,130.88,130.84,3.8208]
[1726693556733,3.80697625,130.88,130.76,7.6461]
[1726693556945,4.98315383,130.87,130.76,7.6461]
[1726693557246,1.16315383,130.86,130.76,7.6461]
[1726693557445,1.16315383,130.86,130.83,3.8211]
[1726693557853,7.7237087,130.87,130.83,3.8211]
[1726693560133,3.9037087,130.87,130.77,7.16335685]
[1726693560338,3.8199,130.88,130.76,19.10710293]
[1726693560548,3.79770814,130.88,130.86,3.8201]
[1726693560749,15.74468397,130.95,130.79,3.91050757]
[1726693560952,19.6280432,130.95,130.79,3.91050757]
[1726693561246,3.8191,130.91,130.87,3.8198]
[1726693561446,1.1628147,130.9,130.87,3.8198]
[1726693561652,3.8191,130.91,130.87,3.8198]
[1726693563446,3.8186,130.92,130.87,3.8198]
[1726693563745,1.16275463,130.91,130.87,3.8198]
[1726693564546,3.8186,130.92,130.87,3.8198]
[1726693564748,1.16275439,130.91,130.87,3.8198]
[1726693567848,3.8186,130.92,130.87,3.8198]
[1726693568550,1.16270136,130.91,130.87,3.8198]
[1726693568845,1.16270136,130.91,130.88,3.8196]
[1726693569250,3.88335923,130.95,130.81,139.44354068]
[1726693569544,1.16274391,130.94,130.81,139.44354068]
[1726693569742,3.8188,130.91,130.81,139.44354068]
[1726693570244,3.8193,130.9,130.81,139.44354068]
[1726693570745,3.8193,130.9,130.86,3.8201]
[1726693570945,7.58688956,130.9,130.86,3.8201]
[1726693571448,3.76758956,130.9,130.87,3.8197]
[1726693571652,3.8189,130.91,130.87,3.8197]
[1726693572146,7.67172255,130.91,130.87,3.8197]
[1726693573555,7.67172255,130.91,130.86,3.82]
[1726693574352,3.8191,130.9,130.86,3.82]
[1726693576544,3.8191,130.9,130.82,1.4707]
[1726693576545,7.67172255,130.91,130.87,3.8199]
[1726693576745,3.8189,130.91,130.87,3.8199]
[1726693577357,7.56422464,130.91,130.87,3.8199]
[1726693577955,3.8191,130.9,130.86,3.8201]
[1726693578556,3.8189,130.91,130.87,3.8198]
[1726693578756,7.72400681,130.91,130.87,3.8198]
[1726693579056,3.8189,130.91,130.87,3.8198]
[1726693579557,7.70145382,130.91,130.87,3.8198]
[1726693590652,3.88255382,130.91,130.82,4.396]
[1726693590851,1.4824,130.95,130.82,4.396]
[1726693591057,5.23126055,130.95,130.82,4.396]
[1726693591255,1.16265107,130.94,130.89,3.8193]
[1726693591462,5.04185026,130.94,130.89,3.8193]
[1726693591663,3.87919919,130.94,130.89,3.8193]
[1726693591862,3.8181,130.94,130.89,3.8193]
[1726693592066,7.71963611,130.94,130.89,3.8193]
[1726693592866,3.90153611,130.94,130.82,4.396]
[1726693593169,2.55705643,130.93,130.82,4.396]
[1726693593366,3.8189,130.91,130.86,3.8201]
[1726693593773,1.4289,130.92,130.86,3.8201]
[1726693593965,3.8191,130.9,130.86,3.8201]
[1726693594366,1.5169,130.91,130.85,3.8205]
[1726693594567,3.8194,130.89,130.85,3.8205]
[1726693595162,3.8194,130.89,130.86,3.8203]
[1726693595369,3.84127039,130.89,130.86,3.8203]
[1726693595570,3.8192,130.9,130.86,3.8203]
[1726693596181,7.66773322,130.9,130.86,3.8203]
[1726693596370,7.66773322,130.9,130.82,4.396]
[1726693596371,115.19722442,131.08,130.82,4.396]
[1726693596577,5.65636388,130.98,130.82,4.396]
[1726693596782,1.16246388,130.97,130.82,4.396]
[1726693597086,4.4939,130.98,130.82,4.396]
[1726693597385,1.16264804,130.97,130.82,4.396]
[1726693597586,3.8188,130.91,130.82,4.396]
[1726693597881,7.65242531,130.91,130.82,4.396]
[1726693598083,3.8188,130.91,130.82,4.396]
[1726693598780,7.62967183,130.91,130.88,3.8196]
[1726693599585,3.8191,130.9,130.87,3.8199]
[1726693599783,4.4939,130.98,130.87,3.8199]
[1726693599985,1.16264804,130.97,130.82,4.396]
[1726693600882,3.8187,130.92,130.87,3.8197]
[1726693601184,3.86285043,130.92,130.82,4.396]
[1726693601478,3.86285043,130.92,130.88,3.8195]
[1726693601479,3.8185,130.92,130.88,3.8195]
[1726693601689,7.693791,130.92,130.88,3.8195]
[1726693601882,3.8185,130.92,130.87,3.8199]
[1726693602483,3.8185,130.92,130.82,4.396]
[1726693602484,3.76023254,130.92,130.82,4.396]
[1726693602683,2.9171,130.91,130.82,4.396]
[1726693602982,6.78627493,130.91,130.82,4.396]
[1726693603182,6.7361,130.91,130.86,3.8201]
[1726693603778,10.63814878,130.91,130.86,3.8201]
[1726693605288,10.63814878,130.91,130.82,4.396]
[1726693605787,6.81914878,130.91,130.81,139.44354068]
[1726693605991,2.69295057,130.9,130.77,4.2893]
[1726693606176,1.16275057,130.89,130.77,4.2893]
[1726693606379,1.16275057,130.89,130.77,11.45160955]
[1726693606789,1.16275057,130.89,130.77,4.2893]
[1726693606985,1.5302,130.9,130.77,4.2893]
[1726693607188,1.5302,130.9,130.78,13.45160904]
[1726693607389,3.90204878,130.91,130.79,7.15838686]
[1726693607586,4.4599,130.96,130.8,3.74122408]
[1726693607778,1.16263863,130.95,130.81,10.62097774]
[1726693607985,5.02234436,130.95,130.81,4.3341]
[1726693608189,3.8186,130.92,130.88,3.8196]
[1726693610687,3.8183,130.93,130.81,4.3341]
[1726693610892,1.16258383,130.92,130.81,4.3341]
[1726693611293,3.818,130.94,130.81,11.48890778]
[1726693611492,1.16254602,130.93,130.81,11.48822146]
[1726693611684,1.16254602,130.92,130.81,11.48822146]
[1726693612086,3.8185,130.92,130.89,3.8193]
[1726693612592,7.66023914,130.92,130.89,3.8193]
[1726693612786,3.8185,130.92,130.89,3.8193]
[1726693613290,7.69654686,130.92,130.89,3.8193]
[1726693613489,3.87804686,130.92,130.89,3.8193]
[1726693613791,3.8183,130.93,130.89,3.8193]
[1726693613987,1.16257022,130.92,130.89,3.8193]
[1726693615983,3.88068263,131.02,130.89,3.90327117]
[1726693616183,338.0,131.1,130.9,4.3584]
[1726693616184,1.16180196,131.01,130.9,4.3584]
[1726693616391,3.81383952,131.01,130.99,3.8163]
[1726693616695,1.4599,131.09,130.9,157.2184]
[1726693616991,4.0522458,131.08,130.91,24.82726411]
[1726693617294,1.16139002,131.07,130.92,6.26912468]
[1726693617495,1.16139002,131.07,130.9,183.93905244]
[1726693617686,8.8055873,131.07,131.02,3.8153]
[1726693617989,1.16131428,131.06,131.02,3.8153]
[1726693618297,4.97581428,131.06,131.01,3.8158]
[1726693618594,1.16131428,131.05,131.01,3.8158]
[1726693620693,3.8145,131.06,131.01,3.8158]
[1726693620895,1.16126461,131.05,131.01,3.8158]
[1726693622591,3.8145,131.06,131.01,3.8158]
[1726693623285,3.815,131.04,130.9,160.98905244]
[1726693623494,3.815,131.04,130.92,8.57838374]
[1726693623693,7.64147135,131.04,130.93,8.57838374]
[1726693623895,3.815,131.04,130.91,13.72334579]
[1726693624092,7.58467034,131.04,130.92,8.57904314]
[1726693624299,7.58467034,131.04,130.91,13.72334579]
[1726693624498,7.58467034,131.04,130.92,8.57935522]
[1726693624688,7.58467034,131.04,130.91,13.72334579]
[1726693624893,3.76967034,131.04,130.92,8.57899999]
[1726693625195,2.8908,131.08,130.91,13.72334579]
[1726693625392,3.815,131.05,131.0,3.816]
[1726693625599,7.56405227,131.05,131.0,3.816]
[1726693626095,1.16133995,131.04,131.0,3.816]
[1726693626299,3.815,131.04,131.0,3.816]
[1726693628695,3.815,131.04,130.99,3.8163]
[1726693629203,3.8153,131.03,130.99,3.8163]
[1726693629390,3.74905227,131.05,130.98,3.8166]
[1726693629595,3.8155,131.03,130.91,8.57815021]
[1726693629791,7.54689188,131.03,130.91,8.57815021]
[1726693630197,7.54689188,131.03,130.99,3.8164]
[1726693630399,3.8156,131.02,130.99,3.8164]
[1726693631503,3.80050759,131.01,130.99,3.8164]
[1726693632304,3.80050759,131.01,130.98,3.8166]
[1726693632899,2.8908,131.08,130.9,16.71309942]
[1726693633199,1.16137401,131.07,130.9,30.44836704]
[1726693633405,1.16137401,131.07,130.9,16.71309942]
[1726693634005,3.8158,131.02,130.98,3.8166]
[1726693634597,3.8158,131.02,130.99,3.8164]
[1726693634793,3.84203861,131.01,130.99,3.8164]
[1726693635509,3.84203861,131.01,130.98,3.8166]
[1726693635510,7.65793861,131.01,130.98,3.8166]
[1726693635697,3.84203861,131.01,130.98,3.8166]
[1726693636001,2.8908,131.08,130.99,3.8164]
[1726693636206,1.16140902,131.07,130.99,3.8164]
[1726693636405,2.8908,131.08,130.99,3.8164]
[1726693636607,3.815,131.04,130.99,3.8164]
[1726693637309,7.61837793,131.04,130.99,3.8164]
[1726693637502,7.61837793,131.04,131.0,3.8162]
[1726693638501,3.80337793,131.04,130.98,3.8165]
[1726693638702,2.68707584,131.03,130.91,8.59220692]
[1726693638909,5.27016477,131.03,130.91,8.59220692]
[1726693639208,3.816,131.01,130.97,3.8168]
[1726693640006,3.816,131.01,130.98,3.8168]
[1726693641198,228.0,131.27,130.99,175.71]
[1726693641403,2.9331,131.24,131.01,22.95]
[1726693641605,1.16084264,131.23,131.03,22.95]
[1726693641805,3.8096,131.23,131.05,22.95]
[1726693642103,3.80270554,131.23,131.05,31.54531489]
[1726693642315,6.7425,131.24,131.18,3.8106]
[1726693642503,10.51618308,131.24,131.18,3.8106]
[1726693642909,6.70678308,131.24,131.1,2.9006]
[1726693643501,3.8101,131.21,131.1,2.9006]
[1726693643901,3.8101,131.21,131.15,3.8115]
[1726693647406,3.8101,131.21,131.16,3.8115]
[1726693648010,1.4725,131.23,131.1,1.4368]
[1726693648210,1.4725,131.23,131.06,5.16721875]
[1726693648510,3.8104,131.2,131.14,3.8121]
[1726693649311,1.4725,131.23,131.13,3.8123]
[1726693650111,3.811,131.18,131.13,3.8123]
[1726693656216,1.4725,131.23,131.12,3.8126]
[1726693656519,1.4725,131.23,131.06,5.16721875]
[1726693656520,1.16016096,131.22,131.06,5.16721875]
[1726693656813,3.8113,131.17,131.12,3.8127]
[1726693657712,7.66296728,131.17,131.12,3.8127]
[1726693657910,3.8116,131.16,131.12,3.8127]
[1726693658112,7.72125019,131.16,131.12,3.8127]
[1726693660020,3.8119,131.15,131.1,3.813]
[1726693660218,3.90965019,131.16,131.06,5.16721875]
[1726693660419,1.4725,131.23,131.06,5.16721875]
[1726693660613,3.8115,131.16,131.11,3.8127]
[1726693660811,7.68625908,131.16,131.11,3.8127]
[1726693661121,3.8115,131.16,131.11,3.8127]
[1726693661310,3.8115,131.16,131.12,3.8127]
[1726693661514,7.71639652,131.16,131.12,3.8127]
[1726693662423,3.90489652,131.16,131.06,5.16721875]
[1726693662624,1.4725,131.23,131.06,5.16721875]
[1726693662817,1.16031883,131.22,131.06,5.16721875]
[1726693663120,3.8117,131.16,131.11,3.8127]
[1726693663322,7.55026837,131.16,131.11,3.8127]
[1726693665415,7.55026837,131.16,131.12,3.8126]
[1726693665821,7.55026837,131.16,131.11,3.8129]
[1726693673424,7.55026837,131.16,131.12,10.55]
[1726693674422,3.73856837,131.16,131.14,10.55]
[1726693674623,3.8114,131.17,131.14,10.55]
[1726693675130,7.63647727,131.17,131.14,10.55]
[1726693675629,3.8116,131.16,131.14,10.55]
[1726693676224,3.8116,131.16,131.13,10.55]
[1726693676427,7.54481943,131.16,131.13,10.55]
[1726693677822,3.73321943,131.16,131.13,10.55]
[1726693678025,3.8114,131.17,131.13,14.3624]
[1726693678524,7.72202843,131.17,131.13,14.3624]
[1726693678723,3.8114,131.17,131.13,3.8124]
[1726693678922,13.413,131.18,131.08,10.55]
[1726693678923,2.58544607,131.16,131.08,10.55]
[1726693679128,2.58544607,131.16,131.1,10.55]
[1726693679129,1.4252,131.16,131.1,10.55]